[Event "Late-Titled-Tuesday-Blitz-April-02-2024"]
[Site "Chess.com"]
[Date "2024.04.02"]
[Round "1"]
[White "WCM-Mexicana"]
[Black "profedechess93"]
[Result "0-1"]
[WhiteElo "2358"]
[BlackElo "2660"]
[TimeControl "180+1"]
[EndTime "14:08:08 PDT"]
[Termination "profedechess93 won on time"]

1. d4 {[%clk 0:02:59.1]} 1... d5 {[%clk 0:02:59.9]} 2. c4 {[%clk 0:02:59]} 2...
c6 {[%clk 0:03:00.2]} 3. Nc3 {[%clk 0:02:59]} 3... Nf6 {[%clk 0:02:59.8]} 4. Nf3
{[%clk 0:02:59.1]} 4... dxc4 {[%clk 0:02:59.4]} 5. a4 {[%clk 0:02:49]} 5... Bf5
{[%clk 0:02:59.1]} 6. e3 {[%clk 0:02:48.8]} 6... e6 {[%clk 0:02:59.2]} 7. Bxc4
{[%clk 0:02:48.9]} 7... Bb4 {[%clk 0:02:59.9]} 8. O-O {[%clk 0:02:48.9]} 8...
Nbd7 {[%clk 0:03:00.5]} 9. Bd2 {[%clk 0:02:45.4]} 9... Bg6 {[%clk 0:02:59.7]}
10. Qb3 {[%clk 0:02:44.2]} 10... a5 {[%clk 0:02:58.7]} 11. Rfe1 {[%clk
0:02:40.1]} 11... O-O {[%clk 0:02:57.7]} 12. e4 {[%clk 0:02:36.6]} 12... Bh5
{[%clk 0:02:15.9]} 13. Ng5 {[%clk 0:02:21.7]} 13... Qe7 {[%clk 0:01:58.4]} 14.
e5 {[%clk 0:02:09.4]} 14... Nd5 {[%clk 0:01:56.7]} 15. Nge4 {[%clk 0:02:09.6]}
15... Rfd8 {[%clk 0:01:46.1]} 16. Ne2 {[%clk 0:01:55.8]} 16... Bxd2 {[%clk
0:01:15.5]} 17. Nxd2 {[%clk 0:01:56.7]} 17... Nb4 {[%clk 0:01:15.8]} 18. Ne4
{[%clk 0:01:51]} 18... Nb6 {[%clk 0:01:15.9]} 19. Nd6 {[%clk 0:01:51.2]} 19...
Bg6 {[%clk 0:01:09.3]} 20. Nf4 {[%clk 0:01:37.4]} 20... Bc2 {[%clk 0:01:01.2]}
21. Qc3 {[%clk 0:01:32.3]} 21... Nxc4 {[%clk 0:00:45.7]} 22. Qxc4 {[%clk
0:01:28]} 22... h6 {[%clk 0:00:36.5]} 23. Re3 {[%clk 0:01:09.7]} 23... Bh7
{[%clk 0:00:30.7]} 24. Rg3 {[%clk 0:01:09.3]} 24... Nd5 {[%clk 0:00:30.2]} 25.
Nh5 {[%clk 0:01:06.5]} 25... Bg6 {[%clk 0:00:29.5]} 26. Rh3 {[%clk 0:01:03.3]}
26... Bxh5 {[%clk 0:00:29]} 27. Rxh5 {[%clk 0:01:04.2]} 27... Nf4 {[%clk
0:00:29.6]} 28. Rh3 {[%clk 0:00:58.8]} 28... Nxh3+ {[%clk 0:00:28]} 29. gxh3
{[%clk 0:00:59.7]} 29... Qh4 {[%clk 0:00:21.4]} 30. Qc3 {[%clk 0:00:54.4]} 30...
b5 {[%clk 0:00:17.6]} 31. Re1 {[%clk 0:00:50.2]} 31... bxa4 {[%clk 0:00:16.5]}
32. Re4 {[%clk 0:00:50.5]} 32... Qh5 {[%clk 0:00:14.2]} 33. Rg4 {[%clk 0:00:50]}
33... Rab8 {[%clk 0:00:13.3]} 34. Ne4 {[%clk 0:00:43.7]} 34... Kh8 {[%clk
0:00:13.3]} 35. Nd6 {[%clk 0:00:38.3]} 35... Rd7 {[%clk 0:00:10.6]} 36. Qxc6
{[%clk 0:00:37.9]} 36... Rbd8 {[%clk 0:00:09.6]} 37. Rg3 {[%clk 0:00:27.4]}
37... f5 {[%clk 0:00:09.5]} 38. Qxa4 {[%clk 0:00:14.4]} 38... Kh7 {[%clk
0:00:07.9]} 39. Qc2 {[%clk 0:00:14]} 39... Kg8 {[%clk 0:00:06.8]} 40. Qc4 {[%clk
0:00:12.2]} 40... Re7 {[%clk 0:00:05.2]} 41. Qa4 {[%clk 0:00:11.9]} 41... Kh7
{[%clk 0:00:05.3]} 42. Qxa5 {[%clk 0:00:12.3]} 42... Rdd7 {[%clk 0:00:04.3]} 43.
Qd2 {[%clk 0:00:11.2]} 43... Qh4 {[%clk 0:00:03.2]} 44. b4 {[%clk 0:00:10.4]}
44... f4 {[%clk 0:00:03.3]} 45. Rg4 {[%clk 0:00:09.9]} 45... Qxh3 {[%clk
0:00:03.4]} 46. Qxf4 {[%clk 0:00:09.6]} 46... Ra7 {[%clk 0:00:03.2]} 47. Qe4+
{[%clk 0:00:08.7]} 47... Kg8 {[%clk 0:00:02.9]} 0-1

[Event "Late-Titled-Tuesday-Blitz-April-02-2024"]
[Site "Chess.com"]
[Date "2024.04.02"]
[Round "1"]
[White "rasmussvane"]
[Black "Mikhal867"]
[Result "0-1"]
[WhiteElo "2899"]
[BlackElo "2513"]
[TimeControl "180+1"]
[EndTime "14:08:11 PDT"]
[Termination "Mikhal867 won by checkmate"]

1. Nf3 {[%clk 0:03:00.9]} 1... c5 {[%clk 0:02:40.8]} 2. c4 {[%clk 0:03:00.1]}
2... Nf6 {[%clk 0:02:40.6]} 3. d4 {[%clk 0:02:59.6]} 3... g6 {[%clk 0:02:38.1]}
4. d5 {[%clk 0:02:58.6]} 4... Bg7 {[%clk 0:02:37.7]} 5. Nc3 {[%clk 0:02:58.8]}
5... O-O {[%clk 0:02:36.4]} 6. e4 {[%clk 0:02:59.1]} 6... d6 {[%clk 0:02:32.4]}
7. h3 {[%clk 0:02:56.9]} 7... e6 {[%clk 0:02:32.3]} 8. Bd3 {[%clk 0:02:48.9]}
8... exd5 {[%clk 0:02:21]} 9. exd5 {[%clk 0:02:49.8]} 9... Re8+ {[%clk 0:02:20]}
10. Be3 {[%clk 0:02:48.9]} 10... a6 {[%clk 0:02:08]} 11. O-O {[%clk 0:02:47.6]}
11... Nh5 {[%clk 0:02:04.5]} 12. Qd2 {[%clk 0:02:44.5]} 12... Nd7 {[%clk
0:02:02.6]} 13. Rfe1 {[%clk 0:02:43.1]} 13... Ne5 {[%clk 0:02:00.5]} 14. Nxe5
{[%clk 0:02:43.1]} 14... Bxe5 {[%clk 0:01:58.8]} 15. Be2 {[%clk 0:02:41.1]}
15... Ng7 {[%clk 0:01:51.9]} 16. Bg5 {[%clk 0:02:20.7]} 16... f6 {[%clk
0:01:38.4]} 17. Bf4 {[%clk 0:02:07]} 17... Nf5 {[%clk 0:01:37.4]} 18. Bd3 {[%clk
0:02:04]} 18... Nd4 {[%clk 0:01:29.5]} 19. Bxe5 {[%clk 0:02:03.1]} 19... fxe5
{[%clk 0:01:26.7]} 20. f4 {[%clk 0:01:49.7]} 20... Bxh3 {[%clk 0:01:13.7]} 21.
fxe5 {[%clk 0:01:49.2]} 21... dxe5 {[%clk 0:01:06.7]} 22. Ne4 {[%clk 0:01:48.6]}
22... Qh4 {[%clk 0:00:54]} 23. Qf2 {[%clk 0:01:29.6]} 23... Qxf2+ {[%clk
0:00:45.5]} 24. Kxf2 {[%clk 0:01:30.5]} 24... Rf8+ {[%clk 0:00:42.8]} 25. Kg1
{[%clk 0:01:31]} 25... Bf5 {[%clk 0:00:32.1]} 26. Nxc5 {[%clk 0:01:25.1]} 26...
Bxd3 {[%clk 0:00:31.4]} 27. Nxd3 {[%clk 0:01:24.9]} 27... Nc2 {[%clk 0:00:31.6]}
28. Rac1 {[%clk 0:00:55.5]} 28... Nxe1 {[%clk 0:00:29.6]} 29. Rxe1 {[%clk
0:00:56.4]} 29... Rfe8 {[%clk 0:00:28.2]} 30. Re4 {[%clk 0:00:51.1]} 30... Kg7
{[%clk 0:00:24.3]} 31. d6 {[%clk 0:00:50.1]} 31... Kf6 {[%clk 0:00:20.1]} 32. c5
{[%clk 0:00:50.4]} 32... Rac8 {[%clk 0:00:19.6]} 33. b4 {[%clk 0:00:49.8]} 33...
Kf5 {[%clk 0:00:19.9]} 34. Re3 {[%clk 0:00:33.9]} 34... Rcd8 {[%clk 0:00:19.6]}
35. Nb2 {[%clk 0:00:25.5]} 35... e4 {[%clk 0:00:19.9]} 36. Nc4 {[%clk
0:00:25.5]} 36... Kf4 {[%clk 0:00:19.5]} 37. Kf2 {[%clk 0:00:25.7]} 37... g5
{[%clk 0:00:19]} 38. g3+ {[%clk 0:00:25.8]} 38... Kg4 {[%clk 0:00:18.9]} 39. Kg2
{[%clk 0:00:26]} 39... h5 {[%clk 0:00:18.1]} 40. Nd2 {[%clk 0:00:23.9]} 40... h4
{[%clk 0:00:18.4]} 41. gxh4 {[%clk 0:00:17.2]} 41... gxh4 {[%clk 0:00:18.3]} 42.
a4 {[%clk 0:00:12.4]} 42... Kf4 {[%clk 0:00:18.4]} 43. Kf2 {[%clk 0:00:12.2]}
43... h3 {[%clk 0:00:17.7]} 44. Nf1 {[%clk 0:00:12.5]} 44... Rf8 {[%clk
0:00:16.4]} 45. Rxh3 {[%clk 0:00:12.1]} 45... Kg4+ {[%clk 0:00:16.7]} 46. Kg2
{[%clk 0:00:12.4]} 46... Rxf1 {[%clk 0:00:16.4]} 47. Rh7 {[%clk 0:00:09.7]}
47... Rd1 {[%clk 0:00:15.7]} 48. Rxb7 {[%clk 0:00:08.3]} 48... Rd2+ {[%clk
0:00:15.8]} 49. Kf1 {[%clk 0:00:08.4]} 49... Kf3 {[%clk 0:00:15.9]} 50. Rf7+
{[%clk 0:00:08.4]} 50... Ke3 {[%clk 0:00:16]} 51. b5 {[%clk 0:00:08.6]} 51...
axb5 {[%clk 0:00:15.8]} 52. axb5 {[%clk 0:00:09.5]} 52... Rc2 {[%clk 0:00:15.5]}
53. Rf5 {[%clk 0:00:04.8]} 53... Kd3 {[%clk 0:00:14.5]} 54. Rd5+ {[%clk
0:00:02.5]} 54... Kc4 {[%clk 0:00:14.3]} 55. Rd1 {[%clk 0:00:02.8]} 55... Kxb5
{[%clk 0:00:14.4]} 56. d7 {[%clk 0:00:03.2]} 56... Kc6 {[%clk 0:00:14.3]} 57.
Kg1 {[%clk 0:00:02.9]} 57... Rxd7 {[%clk 0:00:14.2]} 58. Ra1 {[%clk 0:00:03.6]}
58... Rxc5 {[%clk 0:00:13.8]} 59. Ra6+ {[%clk 0:00:03.4]} 59... Kb5 {[%clk
0:00:13.7]} 60. Ra1 {[%clk 0:00:04.3]} 60... Rf5 {[%clk 0:00:13.5]} 61. Re1
{[%clk 0:00:04.6]} 61... Rg7+ {[%clk 0:00:13.4]} 62. Kh2 {[%clk 0:00:05.2]}
62... Rh5# {[%clk 0:00:13.6]} 0-1

[Event "Late-Titled-Tuesday-Blitz-April-02-2024"]
[Site "Chess.com"]
[Date "2024.04.02"]
[Round "1"]
[White "carlsenCamacho"]
[Black "1mbl4"]
[Result "0-1"]
[WhiteElo "2296"]
[BlackElo "2622"]
[TimeControl "180+1"]
[EndTime "14:08:15 PDT"]
[Termination "1mbl4 won on time"]

1. e4 {[%clk 0:02:10.2]} 1... c5 {[%clk 0:02:58.6]} 2. Nf3 {[%clk 0:02:09]} 2...
g6 {[%clk 0:02:58.5]} 3. d3 {[%clk 0:02:08.9]} 3... Bg7 {[%clk 0:02:58.4]} 4. g3
{[%clk 0:02:08.4]} 4... Nc6 {[%clk 0:02:58.2]} 5. Bg2 {[%clk 0:02:07.9]} 5...
Nf6 {[%clk 0:02:57.6]} 6. O-O {[%clk 0:02:08.3]} 6... O-O {[%clk 0:02:57.3]} 7.
Re1 {[%clk 0:02:08.7]} 7... d6 {[%clk 0:02:57]} 8. c3 {[%clk 0:02:08.6]} 8...
Bg4 {[%clk 0:02:40.2]} 9. h3 {[%clk 0:02:07.8]} 9... Bxf3 {[%clk 0:02:39.8]} 10.
Qxf3 {[%clk 0:02:08.7]} 10... Rb8 {[%clk 0:02:36.8]} 11. a4 {[%clk 0:02:08.4]}
11... a6 {[%clk 0:02:36.2]} 12. Na3 {[%clk 0:02:08.2]} 12... b5 {[%clk
0:02:35.4]} 13. axb5 {[%clk 0:02:01.2]} 13... axb5 {[%clk 0:02:36.3]} 14. Nc2
{[%clk 0:02:01.2]} 14... b4 {[%clk 0:02:34.1]} 15. d4 {[%clk 0:01:45]} 15...
bxc3 {[%clk 0:02:33.5]} 16. bxc3 {[%clk 0:01:45.9]} 16... Nd7 {[%clk 0:02:09.3]}
17. e5 {[%clk 0:01:42.7]} 17... Rb6 {[%clk 0:02:08.8]} 18. exd6 {[%clk
0:01:33.2]} 18... exd6 {[%clk 0:02:07.8]} 19. Qd5 {[%clk 0:01:30.3]} 19... Ne7
{[%clk 0:01:44.3]} 20. Qe4 {[%clk 0:01:24.2]} 20... Nf5 {[%clk 0:01:42.1]} 21.
Bf4 {[%clk 0:01:18.9]} 21... Rb2 {[%clk 0:01:31.1]} 22. g4 {[%clk 0:01:12.7]}
22... Nh4 {[%clk 0:01:24.3]} 23. Bxd6 {[%clk 0:01:11.9]} 23... Nf6 {[%clk
0:01:23.8]} 24. Qc6 {[%clk 0:00:38]} 24... Nxg2 {[%clk 0:01:08.5]} 25. Bxf8
{[%clk 0:00:27.9]} 25... Bxf8 {[%clk 0:00:44.8]} 26. Ra8 {[%clk 0:00:25.2]}
26... Qd5 {[%clk 0:00:23.8]} 27. Qxd5 {[%clk 0:00:13.2]} 27... Nxd5 {[%clk
0:00:23]} 28. Ree8 {[%clk 0:00:12.3]} 28... Rxc2 {[%clk 0:00:17.2]} 29. Rxf8+
{[%clk 0:00:11.9]} 29... Kg7 {[%clk 0:00:18.1]} 30. Kxg2 {[%clk 0:00:12.7]}
30... Rxc3 {[%clk 0:00:18.1]} 31. dxc5 {[%clk 0:00:11.3]} 31... Nf4+ {[%clk
0:00:18]} 32. Kh2 {[%clk 0:00:10.2]} 32... Rxh3+ {[%clk 0:00:17.6]} 33. Kg1
{[%clk 0:00:10.8]} 33... Rc3 {[%clk 0:00:17.6]} 34. Rfc8 {[%clk 0:00:11.1]}
34... Ne6 {[%clk 0:00:16.3]} 35. Ra7 {[%clk 0:00:10.7]} 35... Rxc5 {[%clk
0:00:14]} 36. Rxc5 {[%clk 0:00:09.4]} 36... Nxc5 {[%clk 0:00:14.9]} 37. Kg2
{[%clk 0:00:09.5]} 37... Nd3 {[%clk 0:00:13]} 38. Kg3 {[%clk 0:00:10.4]} 38...
g5 {[%clk 0:00:12.1]} 39. Kf3 {[%clk 0:00:09.8]} 39... Ne5+ {[%clk 0:00:11.1]}
40. Kg3 {[%clk 0:00:09.2]} 40... h6 {[%clk 0:00:11.4]} 41. Ra6 {[%clk
0:00:09.3]} 41... Nd3 {[%clk 0:00:10.9]} 42. Kf3 {[%clk 0:00:09.2]} 42... Ne5+
{[%clk 0:00:11.1]} 43. Kg3 {[%clk 0:00:09.8]} 43... Nd3 {[%clk 0:00:11.2]} 44.
Rd6 {[%clk 0:00:09.3]} 44... Nf4 {[%clk 0:00:11.2]} 45. Kf3 {[%clk 0:00:09.8]}
45... Ne6 {[%clk 0:00:11.2]} 46. Ke4 {[%clk 0:00:09.7]} 46... Kf6 {[%clk
0:00:11.4]} 47. Ra6 {[%clk 0:00:09.2]} 47... Kg7 {[%clk 0:00:10.7]} 48. Ke5
{[%clk 0:00:07.3]} 48... Nc5 {[%clk 0:00:10.2]} 49. Ra7 {[%clk 0:00:04.7]} 49...
Nd3+ {[%clk 0:00:09.9]} 50. Kd6 {[%clk 0:00:03.3]} 50... Nxf2 {[%clk 0:00:09.7]}
51. Ke7 {[%clk 0:00:03.7]} 51... Nxg4 {[%clk 0:00:09]} 52. Ke8 {[%clk
0:00:03.5]} 52... Ne5 {[%clk 0:00:08.7]} 0-1

[Event "Late-Titled-Tuesday-Blitz-April-02-2024"]
[Site "Chess.com"]
[Date "2024.04.02"]
[Round "1"]
[White "Byniolus"]
[Black "burritus"]
[Result "1-0"]
[WhiteElo "2794"]
[BlackElo "2439"]
[TimeControl "180+1"]
[EndTime "14:08:29 PDT"]
[Termination "Byniolus won on time"]

1. d4 {[%clk 0:03:00.9]} 1... d5 {[%clk 0:02:59.5]} 2. Nf3 {[%clk 0:02:59.8]}
2... Nf6 {[%clk 0:02:53.2]} 3. Bf4 {[%clk 0:02:59.5]} 3... c5 {[%clk 0:02:52.1]}
4. c3 {[%clk 0:02:59]} 4... Nc6 {[%clk 0:02:51.2]} 5. Nbd2 {[%clk 0:02:57.5]}
5... e6 {[%clk 0:02:51.3]} 6. e3 {[%clk 0:02:57.5]} 6... Be7 {[%clk 0:02:49.9]}
7. h3 {[%clk 0:02:54.5]} 7... b6 {[%clk 0:02:48.6]} 8. Bb5 {[%clk 0:02:53.1]}
8... Bd7 {[%clk 0:02:46.3]} 9. Ba6 {[%clk 0:02:53.2]} 9... Bc8 {[%clk
0:02:29.9]} 10. Bb5 {[%clk 0:02:53.5]} 10... Bd7 {[%clk 0:02:29.5]} 11. O-O
{[%clk 0:02:51.9]} 11... O-O {[%clk 0:02:28.1]} 12. Qe2 {[%clk 0:02:48.7]} 12...
Ne4 {[%clk 0:02:21.5]} 13. Nxe4 {[%clk 0:02:47.2]} 13... dxe4 {[%clk 0:02:19.5]}
14. Nd2 {[%clk 0:02:47.6]} 14... a6 {[%clk 0:02:12.5]} 15. Ba4 {[%clk
0:02:41.5]} 15... b5 {[%clk 0:02:11.3]} 16. Bc2 {[%clk 0:02:33.6]} 16... f5
{[%clk 0:02:10.8]} 17. dxc5 {[%clk 0:02:32.9]} 17... Bxc5 {[%clk 0:02:08.2]} 18.
Rfd1 {[%clk 0:02:31.6]} 18... e5 {[%clk 0:01:56.8]} 19. Bh2 {[%clk 0:02:30.5]}
19... Qe7 {[%clk 0:01:56.9]} 20. b4 {[%clk 0:02:14.1]} 20... Bb6 {[%clk
0:01:52]} 21. a4 {[%clk 0:02:14.1]} 21... Rab8 {[%clk 0:01:48.6]} 22. axb5
{[%clk 0:02:10.2]} 22... axb5 {[%clk 0:01:47.6]} 23. Ra6 {[%clk 0:01:21]} 23...
Kh8 {[%clk 0:01:43.7]} 24. Nb3 {[%clk 0:01:10.8]} 24... Rfc8 {[%clk 0:01:33.5]}
25. Nc5 {[%clk 0:00:51.3]} 25... Be8 {[%clk 0:01:17.9]} 26. Nb3 {[%clk 0:00:43]}
26... h6 {[%clk 0:01:15.6]} 27. Rda1 {[%clk 0:00:37.2]} 27... Rd8 {[%clk
0:01:10.5]} 28. Kh1 {[%clk 0:00:23.2]} 28... Qb7 {[%clk 0:00:56.8]} 29. g4
{[%clk 0:00:20.7]} 29... Qf7 {[%clk 0:00:46.3]} 30. Nd2 {[%clk 0:00:09.7]} 30...
fxg4 {[%clk 0:00:27.2]} 31. hxg4 {[%clk 0:00:08.7]} 31... Qe6 {[%clk 0:00:07.9]}
32. Bxe4 {[%clk 0:00:08]} 32... Bg6 {[%clk 0:00:07.1]} 33. Bxg6 {[%clk 0:00:07]}
33... Qxg6 {[%clk 0:00:08]} 34. Nf1 {[%clk 0:00:07.3]} 34... e4 {[%clk
0:00:06.4]} 35. Ng3 {[%clk 0:00:07.1]} 35... Ne5 {[%clk 0:00:05.5]} 36. Kg2
{[%clk 0:00:02.5]} 36... Nf3 {[%clk 0:00:03.4]} 37. Qxb5 {[%clk 0:00:01.9]}
37... Rd2 {[%clk 0:00:03.3]} 38. Bg1 {[%clk 0:00:01.7]} 38... Nxg1 {[%clk
0:00:03.2]} 39. Kxg1 {[%clk 0:00:02.2]} 39... Qxg4 {[%clk 0:00:03.6]} 40. Qf5
{[%clk 0:00:02.2]} 40... Qxf5 {[%clk 0:00:01.9]} 41. Nxf5 {[%clk 0:00:03.1]}
41... Bd8 {[%clk 0:00:01.2]} 42. Ra8 {[%clk 0:00:02.4]} 42... Rxa8 {[%clk
0:00:01.4]} 43. Rxa8 {[%clk 0:00:03.3]} 43... Kh7 {[%clk 0:00:01.7]} 44. b5
{[%clk 0:00:03.7]} 44... Bf6 {[%clk 0:00:01.8]} 45. b6 {[%clk 0:00:03.5]} 45...
Bxc3 {[%clk 0:00:02.6]} 46. b7 {[%clk 0:00:03.5]} 46... Rd1+ {[%clk 0:00:03.4]}
47. Kg2 {[%clk 0:00:03.6]} 47... Be5 {[%clk 0:00:03.9]} 48. Re8 {[%clk
0:00:03.4]} 48... Bc7 {[%clk 0:00:03.9]} 49. b8=Q {[%clk 0:00:03.9]} 49... Bxb8
{[%clk 0:00:03.7]} 50. Rxb8 {[%clk 0:00:04.8]} 50... Rd5 {[%clk 0:00:03.2]} 51.
Ng3 {[%clk 0:00:05.2]} 51... Rg5 {[%clk 0:00:04.1]} 52. Rb4 {[%clk 0:00:05.1]}
52... h5 {[%clk 0:00:04.7]} 53. Rxe4 {[%clk 0:00:05.4]} 53... Kh6 {[%clk
0:00:03.3]} 54. Kf3 {[%clk 0:00:05]} 54... g6 {[%clk 0:00:04.2]} 55. Rf4 {[%clk
0:00:04.8]} 55... Rd5 {[%clk 0:00:04.5]} 56. Rd4 {[%clk 0:00:05.1]} 56... Re5
{[%clk 0:00:04.2]} 57. e4 {[%clk 0:00:05.1]} 57... Re7 {[%clk 0:00:04.7]} 58.
Rd5 {[%clk 0:00:05]} 58... g5 {[%clk 0:00:04.4]} 59. Nf5+ {[%clk 0:00:05]} 1-0

[Event "Late-Titled-Tuesday-Blitz-April-02-2024"]
[Site "Chess.com"]
[Date "2024.04.02"]
[Round "1"]
[White "Manukyan_Artak"]
[Black "Oleksandr_Bortnyk"]
[Result "0-1"]
[WhiteElo "2537"]
[BlackElo "3040"]
[TimeControl "180+1"]
[EndTime "14:08:30 PDT"]
[Termination "Oleksandr_Bortnyk won on time"]

1. e4 {[%clk 0:02:59.6]} 1... Nf6 {[%clk 0:02:58.9]} 2. Nc3 {[%clk 0:02:59.5]}
2... d5 {[%clk 0:02:56.5]} 3. exd5 {[%clk 0:02:58.2]} 3... Nxd5 {[%clk
0:02:57.4]} 4. Bc4 {[%clk 0:02:58.4]} 4... Nb6 {[%clk 0:02:57.5]} 5. Bb3 {[%clk
0:02:58.5]} 5... c5 {[%clk 0:02:56.7]} 6. d3 {[%clk 0:02:58.3]} 6... Nc6 {[%clk
0:02:51.5]} 7. Qf3 {[%clk 0:02:58.5]} 7... e6 {[%clk 0:02:49.6]} 8. Nge2 {[%clk
0:02:58.5]} 8... Bd7 {[%clk 0:02:37.7]} 9. h4 {[%clk 0:02:56.1]} 9... h6 {[%clk
0:02:06]} 10. Qg3 {[%clk 0:02:49.7]} 10... Na5 {[%clk 0:02:01.6]} 11. Bf4 {[%clk
0:02:44.7]} 11... Bc6 {[%clk 0:01:59.9]} 12. O-O-O {[%clk 0:02:39.7]} 12...
Nxb3+ {[%clk 0:01:59.9]} 13. axb3 {[%clk 0:02:39.5]} 13... Nd5 {[%clk
0:01:58.8]} 14. Be5 {[%clk 0:02:32.1]} 14... Qa5 {[%clk 0:01:52.9]} 15. Kb1
{[%clk 0:02:28.7]} 15... O-O-O {[%clk 0:01:49.7]} 16. Nxd5 {[%clk 0:02:01.4]}
16... Bxd5 {[%clk 0:01:48.5]} 17. Nf4 {[%clk 0:01:46]} 17... Bc6 {[%clk
0:01:41.8]} 18. Nh5 {[%clk 0:01:39.3]} 18... f6 {[%clk 0:01:39.9]} 19. Bc3
{[%clk 0:01:38.9]} 19... Qc7 {[%clk 0:01:38.9]} 20. Qxc7+ {[%clk 0:01:31.9]}
20... Kxc7 {[%clk 0:01:39.8]} 21. f3 {[%clk 0:01:31.4]} 21... e5 {[%clk
0:01:27.4]} 22. Rhe1 {[%clk 0:01:20.8]} 22... Rd7 {[%clk 0:01:22.5]} 23. Ng3
{[%clk 0:01:20.3]} 23... b6 {[%clk 0:01:17.4]} 24. h5 {[%clk 0:01:11.8]} 24...
Kb7 {[%clk 0:01:17.8]} 25. Nf5 {[%clk 0:01:11.8]} 25... Rf7 {[%clk 0:01:15.4]}
26. Rf1 {[%clk 0:01:06.1]} 26... Bd7 {[%clk 0:01:15]} 27. g4 {[%clk 0:01:04.9]}
27... Rg8 {[%clk 0:01:05.1]} 28. Rh1 {[%clk 0:00:54.6]} 28... Bc6 {[%clk
0:01:03]} 29. Rdf1 {[%clk 0:00:53.9]} 29... Rd7 {[%clk 0:01:01.5]} 30. Kc1
{[%clk 0:00:52.5]} 30... b5 {[%clk 0:00:57.7]} 31. Bd2 {[%clk 0:00:51.7]} 31...
Bd5 {[%clk 0:00:52.9]} 32. Rhg1 {[%clk 0:00:50.9]} 32... c4 {[%clk 0:00:50.2]}
33. bxc4 {[%clk 0:00:50]} 33... bxc4 {[%clk 0:00:51.1]} 34. dxc4 {[%clk
0:00:48.9]} 34... Bxc4 {[%clk 0:00:52]} 35. Re1 {[%clk 0:00:46.9]} 35... Bc5
{[%clk 0:00:51.6]} 36. Be3 {[%clk 0:00:47]} 36... Bb4 {[%clk 0:00:45.5]} 37. c3
{[%clk 0:00:44.9]} 37... Ba5 {[%clk 0:00:43.5]} 38. Rd1 {[%clk 0:00:44.9]} 38...
Be6 {[%clk 0:00:15.3]} 39. Rxd7+ {[%clk 0:00:33.8]} 39... Bxd7 {[%clk
0:00:16.2]} 40. Rd1 {[%clk 0:00:33.8]} 40... Ba4 {[%clk 0:00:15.3]} 41. Rd5
{[%clk 0:00:30]} 41... Bb6 {[%clk 0:00:14.9]} 42. Bxb6 {[%clk 0:00:28.2]} 42...
axb6 {[%clk 0:00:15.8]} 43. Kd2 {[%clk 0:00:20.7]} 43... Kc7 {[%clk 0:00:10.2]}
44. Ke3 {[%clk 0:00:18]} 44... Bd7 {[%clk 0:00:09.5]} 45. Ng3 {[%clk 0:00:14.2]}
45... Ra8 {[%clk 0:00:09.1]} 46. Rd2 {[%clk 0:00:13.2]} 46... Ra1 {[%clk
0:00:08.9]} 47. Ne4 {[%clk 0:00:12.7]} 47... Rf1 {[%clk 0:00:06.2]} 48. Rf2
{[%clk 0:00:12.1]} 48... Rb1 {[%clk 0:00:05.2]} 49. Rd2 {[%clk 0:00:07.6]} 49...
Bc6 {[%clk 0:00:05]} 50. Ng3 {[%clk 0:00:04.4]} 50... Re1+ {[%clk 0:00:03]} 51.
Kf2 {[%clk 0:00:04.3]} 51... Rb1 {[%clk 0:00:03.4]} 52. Ne2 {[%clk 0:00:04.1]}
52... e4 {[%clk 0:00:02.6]} 53. fxe4 {[%clk 0:00:03.7]} 53... Bxe4 {[%clk
0:00:03.5]} 54. Ng3 {[%clk 0:00:04.3]} 54... Bh7 {[%clk 0:00:02.7]} 55. Nf5
{[%clk 0:00:04.2]} 55... Bxf5 {[%clk 0:00:03.1]} 56. gxf5 {[%clk 0:00:05.1]}
56... Rh1 {[%clk 0:00:03.6]} 57. Re2 {[%clk 0:00:04.5]} 57... Kd7 {[%clk
0:00:02.7]} 58. Re6 {[%clk 0:00:03.2]} 58... Rh2+ {[%clk 0:00:02.3]} 59. Ke3
{[%clk 0:00:03]} 59... Rxb2 {[%clk 0:00:03.2]} 60. Kd4 {[%clk 0:00:02.3]} 60...
Rb5 {[%clk 0:00:03]} 61. Kc4 {[%clk 0:00:01.7]} 61... Rc5+ {[%clk 0:00:03.2]}
62. Kb4 {[%clk 0:00:01.4]} 62... Kc7 {[%clk 0:00:03.4]} 63. Rxb6 {[%clk
0:00:02.3]} 63... Kxb6 {[%clk 0:00:03.7]} 0-1